[Event "January 2 Late 2024"]
[Site "https://www.chess.com"]
[Date "2024.01.02"]
[Round "11"]
[White "Bryant, Todd"]
[Black "Shapiro, Viktor"]
[Result "0-1"]
[Board "85"]
[TimeControl "180+1"]
[WhiteFideId "2031299"]
[BlackFideId "4175700"]
[WhiteElo "2304"]
[BlackElo "2494"]
[WhiteTeam "USA"]
[BlackTeam "RUS"]
[WhiteClock "0:00:35"]
[BlackClock "0:01:18"]

1. e4 {[%clk 0:03:00]}  Nf6 {[%clk 0:03:00]} 2. e5 {[%clk 0:03:00]}  Nd5 {[%clk 0:03:00]} 3. d4 {[%clk 0:03:01]}  d6 {[%clk 0:03:00]} 4. c4 {[%clk 0:03:02]}  Nb6 {[%clk 0:03:01]} 5. f4 {[%clk 0:03:02]}  dxe5 {[%clk 0:03:01]} 6. fxe5 {[%clk 0:03:03]}  c5 {[%clk 0:03:02]} 7. d5 {[%clk 0:02:59]}  g6 {[%clk 0:03:02]} 8. Nf3 {[%clk 0:02:56]}  Bg4 {[%clk 0:03:01]} 9. h3 {[%clk 0:02:42]}  Bxf3 {[%clk 0:03:01]} 10. Qxf3 {[%clk 0:02:43]}  Bg7 {[%clk 0:03:01]} 11. Qe4 {[%clk 0:02:22]}  O-O {[%clk 0:02:57]} 12. Nc3 {[%clk 0:02:18]}  e6 {[%clk 0:02:57]} 13. Bf4 {[%clk 0:02:04]}  exd5 {[%clk 0:02:53]} 14. cxd5 {[%clk 0:02:05]}  N8d7 {[%clk 0:02:47]} 15. e6 {[%clk 0:01:57]}  Nf6 {[%clk 0:02:09]} 16. e7 {[%clk 0:01:28]}  Nxe4 {[%clk 0:02:07]} 17. exd8=Q {[%clk 0:01:29]}  Bxc3+ {[%clk 0:02:07]} 18. bxc3 {[%clk 0:01:22]}  Raxd8 {[%clk 0:02:07]} 19. c4 {[%clk 0:01:17]}  Rfe8 {[%clk 0:02:05]} 20. O-O-O {[%clk 0:01:16]}  Nf2 {[%clk 0:02:05]} 21. Bd3 {[%clk 0:01:16]}  Nxh1 {[%clk 0:01:57]} 22. Rxh1 {[%clk 0:01:17]}  Nxc4 {[%clk 0:01:54]} 23. Bxc4 {[%clk 0:01:14]}  Re4 {[%clk 0:01:54]} 24. Bb5 {[%clk 0:00:58]}  Rxf4 {[%clk 0:01:53]} 25. Rd1 {[%clk 0:00:54]}  a6 {[%clk 0:01:52]} 26. Be2 {[%clk 0:00:51]}  Rd6 {[%clk 0:01:47]} 27. Bf3 {[%clk 0:00:50]}  Kf8 {[%clk 0:01:46]} 28. Re1 {[%clk 0:00:48]}  b5 {[%clk 0:01:39]} 29. Re3 {[%clk 0:00:47]}  Rd4 {[%clk 0:01:36]} 30. Ra3 {[%clk 0:00:45]}  h5 {[%clk 0:01:33]} 31. Rc3 {[%clk 0:00:40]}  c4 {[%clk 0:01:31]} 32. Kb2 {[%clk 0:00:34]}  Ke7 {[%clk 0:01:31]} 33. Re3+ {[%clk 0:00:28]}  Kd7 {[%clk 0:01:31]} 34. Re5 {[%clk 0:00:27]}  b4 {[%clk 0:01:25]} 35. Re1 {[%clk 0:00:17]}  a5 {[%clk 0:01:24]} 36. Rc1 {[%clk 0:00:17]}  Rd2+ {[%clk 0:01:22]} 37. Kb1 {[%clk 0:00:17]}  c3 {[%clk 0:01:23]} 38. Rc2 {[%clk 0:00:14]}  Rxc2 {[%clk 0:01:22]} 39. Kxc2 {[%clk 0:00:15]}  Kc7 {[%clk 0:01:22]} 40. Kb3 {[%clk 0:00:15]}  Kb6 {[%clk 0:01:22]} 41. a3 {[%clk 0:00:16]}  Kc5 {[%clk 0:01:22]} 42. axb4+ {[%clk 0:00:16]}  axb4 {[%clk 0:01:23]} 43. Be4 {[%clk 0:00:17]}  Rxd5 {[%clk 0:01:21]} 44. Bxd5 {[%clk 0:00:16]}  Kxd5 {[%clk 0:01:21]} 45. Kc2 {[%clk 0:00:17]}  Kc4 {[%clk 0:01:22]} 46. Kc1 {[%clk 0:00:17]}  b3 {[%clk 0:01:22]} 47. Kb1 {[%clk 0:00:17]}  Kd3 {[%clk 0:01:21]} 48. Kc1 {[%clk 0:00:18]}  b2+ {[%clk 0:01:21]} 49. Kb1 {[%clk 0:00:19]}  Kd2 {[%clk 0:01:20]} 50. g4 {[%clk 0:00:19]}  hxg4 {[%clk 0:01:20]} 51. hxg4 {[%clk 0:00:20]}  c2+ {[%clk 0:01:21]} 52. Kxb2 {[%clk 0:00:20]}  c1=Q+ {[%clk 0:01:21]} 53. Kb3 {[%clk 0:00:21]}  Qc3+ {[%clk 0:01:20]} 54. Ka4 {[%clk 0:00:22]}  Qd4+ {[%clk 0:01:20]} 55. Ka5 {[%clk 0:00:23]}  Qxg4 {[%clk 0:01:20]} 56. Ka6 {[%clk 0:00:24]}  Qb4 {[%clk 0:01:20]} 57. Ka7 {[%clk 0:00:25]}  f5 {[%clk 0:01:20]} 58. Ka8 {[%clk 0:00:26]}  f4 {[%clk 0:01:21]} 59. Ka7 {[%clk 0:00:27]}  f3 {[%clk 0:01:22]} 60. Ka8 {[%clk 0:00:28]}  g5 {[%clk 0:01:22]} 61. Ka7 {[%clk 0:00:28]}  g4 {[%clk 0:01:23]} 62. Ka8 {[%clk 0:00:29]}  g3 {[%clk 0:01:23]} 63. Ka7 {[%clk 0:00:30]}  g2 {[%clk 0:01:24]} 64. Ka8 {[%clk 0:00:31]}  f2 {[%clk 0:01:24]} 65. Ka7 {[%clk 0:00:32]}  f1=Q {[%clk 0:01:22]} 66. Ka8 {[%clk 0:00:33]}  Qc1 {[%clk 0:01:20]} 67. Ka7 {[%clk 0:00:34]}  g1=Q+ {[%clk 0:01:20]} 68. Ka8 {[%clk 0:00:34]}  Qg8+ {[%clk 0:01:19]} 69. Ka7 {[%clk 0:00:35]}  Qca3# {[%clk 0:01:18]} 0-1

[Event "January 2 Late 2024"]
[Site "https://www.chess.com"]
[Date "2024.01.02"]
[Round "11"]
[White "Slavin, Alexey"]
[Black "Dobre, Claudiu-Cristian"]
[Result "0-1"]
[Board "86"]
[TimeControl "180+1"]
[WhiteFideId "24104388"]
[BlackFideId "1211854"]
[WhiteElo "2291"]
[BlackElo "2491"]
[WhiteTeam "RUS"]
[BlackTeam "ROU"]
[WhiteClock "0:00:32"]
[BlackClock "0:00:06"]

1. e4 {[%clk 0:02:59]}  Nc6 {[%clk 0:02:59]} 2. Nc3 {[%clk 0:02:58]}  e5 {[%clk 0:02:59]} 3. Bb5 {[%clk 0:02:57]}  Nd4 {[%clk 0:02:58]} 4. Bc4 {[%clk 0:02:57]}  c6 {[%clk 0:02:52]} 5. Nf3 {[%clk 0:02:53]}  Nxf3+ {[%clk 0:02:50]} 6. Qxf3 {[%clk 0:02:53]}  Nf6 {[%clk 0:02:50]} 7. d3 {[%clk 0:02:51]}  b5 {[%clk 0:02:34]} 8. Bb3 {[%clk 0:02:51]}  Bc5 {[%clk 0:02:31]} 9. h3 {[%clk 0:02:50]}  O-O {[%clk 0:02:30]} 10. Bg5 {[%clk 0:02:49]}  d6 {[%clk 0:02:23]} 11. O-O {[%clk 0:02:45]}  a5 {[%clk 0:02:23]} 12. a4 {[%clk 0:02:44]}  b4 {[%clk 0:02:24]} 13. Ne2 {[%clk 0:02:44]}  Be6 {[%clk 0:02:24]} 14. Ng3 {[%clk 0:02:38]}  h6 {[%clk 0:02:14]} 15. Bxf6 {[%clk 0:02:33]}  Qxf6 {[%clk 0:02:14]} 16. Qxf6 {[%clk 0:02:32]}  gxf6 {[%clk 0:02:14]} 17. Nh5 {[%clk 0:02:32]}  Bxb3 {[%clk 0:02:14]} 18. cxb3 {[%clk 0:02:32]}  Bd4 {[%clk 0:02:11]} 19. Nxf6+ {[%clk 0:02:27]}  Kg7 {[%clk 0:02:10]} 20. Nh5+ {[%clk 0:02:27]}  Kg6 {[%clk 0:02:10]} 21. Ng3 {[%clk 0:02:24]}  Bxb2 {[%clk 0:02:08]} 22. Ra2 {[%clk 0:02:24]}  Bd4 {[%clk 0:02:08]} 23. Nf5 {[%clk 0:02:23]}  Bc5 {[%clk 0:01:58]} 24. Rc2 {[%clk 0:02:16]}  Ra7 {[%clk 0:01:50]} 25. Kh2 {[%clk 0:02:16]}  f6 {[%clk 0:01:49]} 26. f4 {[%clk 0:02:11]}  Kh7 {[%clk 0:01:48]} 27. fxe5 {[%clk 0:02:08]}  fxe5 {[%clk 0:01:44]} 28. Rf3 {[%clk 0:02:04]}  Rf6 {[%clk 0:01:43]} 29. Rg3 {[%clk 0:01:58]}  Raf7 {[%clk 0:01:40]} 30. Rf3 {[%clk 0:01:55]}  Rg6 {[%clk 0:01:36]} 31. Rc4 {[%clk 0:01:48]}  h5 {[%clk 0:01:35]} 32. Nh4 {[%clk 0:01:44]}  Rxf3 {[%clk 0:01:18]} 33. Nxf3 {[%clk 0:01:44]}  Rf6 {[%clk 0:01:09]} 34. Nxe5 {[%clk 0:01:41]}  Bf2 {[%clk 0:00:44]} 35. Nf3 {[%clk 0:01:27]}  c5 {[%clk 0:00:41]} 36. e5 {[%clk 0:01:25]}  dxe5 {[%clk 0:00:36]} 37. Nxe5 {[%clk 0:01:24]}  Be3 {[%clk 0:00:36]} 38. Nf3 {[%clk 0:01:23]}  Rd6 {[%clk 0:00:30]} 39. Ne1 {[%clk 0:01:02]}  Bf2 {[%clk 0:00:20]} 40. Nf3 {[%clk 0:00:53]}  Rxd3 {[%clk 0:00:19]} 41. Rf4 {[%clk 0:00:51]}  h4 {[%clk 0:00:15]} 42. Ng5+ {[%clk 0:00:47]}  Kg6 {[%clk 0:00:15]} 43. Rxf2 {[%clk 0:00:42]}  Kxg5 {[%clk 0:00:15]} 44. Rc2 {[%clk 0:00:40]}  Rc3 {[%clk 0:00:15]} 45. Rb2 {[%clk 0:00:41]}  Kf4 {[%clk 0:00:14]} 46. Rb1 {[%clk 0:00:36]}  Ke4 {[%clk 0:00:13]} 47. Kg1 {[%clk 0:00:36]}  Kd3 {[%clk 0:00:13]} 48. Kf2 {[%clk 0:00:36]}  Kc2 {[%clk 0:00:13]} 49. Re1 {[%clk 0:00:36]}  Kxb3 {[%clk 0:00:13]} 50. g4 {[%clk 0:00:34]}  hxg3+ {[%clk 0:00:13]} 51. Kg2 {[%clk 0:00:35]}  Kxa4 {[%clk 0:00:11]} 52. h4 {[%clk 0:00:36]}  Rd3 {[%clk 0:00:07]} 53. h5 {[%clk 0:00:36]}  c4 {[%clk 0:00:07]} 54. Rh1 {[%clk 0:00:35]}  Rd7 {[%clk 0:00:07]} 55. Kxg3 {[%clk 0:00:34]}  c3 {[%clk 0:00:07]} 56. Kg4 {[%clk 0:00:35]}  b3 {[%clk 0:00:07]} 57. Kf5 {[%clk 0:00:34]}  b2 {[%clk 0:00:07]} 58. Ke6 {[%clk 0:00:35]}  Rh7 {[%clk 0:00:06]} 59. Kf6 {[%clk 0:00:35]}  Rxh5 {[%clk 0:00:06]} 60. Kg6 {[%clk 0:00:32]}  Rxh1 {[%clk 0:00:06]} 0-1

[Event "January 2 Late 2024"]
[Site "https://www.chess.com"]
[Date "2024.01.02"]
[Round "11"]
[White "Reprintsev, Alexander"]
[Black "Ghosh, Chanchal Kumer"]
[Result "0-1"]
[Board "88"]
[TimeControl "180+1"]
[WhiteFideId "14100541"]
[BlackFideId "10201858"]
[WhiteElo "2481"]
[BlackElo "2162"]
[WhiteTeam "UKR"]
[BlackTeam "BAN"]
[WhiteClock "0:00:00"]
[BlackClock "0:00:14"]

1. e4 {[%clk 0:03:00]}  c5 {[%clk 0:02:57]} 2. b3 {[%clk 0:02:59]}  d5 {[%clk 0:02:56]} 3. exd5 {[%clk 0:02:58]}  Qxd5 {[%clk 0:02:57]} 4. Nc3 {[%clk 0:02:56]}  Qd6 {[%clk 0:02:56]} 5. Bb2 {[%clk 0:02:56]}  a6 {[%clk 0:02:56]} 6. Qf3 {[%clk 0:02:55]}  Nc6 {[%clk 0:02:55]} 7. O-O-O {[%clk 0:02:54]}  Nf6 {[%clk 0:02:54]} 8. h3 {[%clk 0:02:47]}  Nd4 {[%clk 0:02:38]} 9. Qg3 {[%clk 0:02:37]}  Qe6 {[%clk 0:02:28]} 10. Bc4 {[%clk 0:02:32]}  Qf5 {[%clk 0:02:27]} 11. Bd3 {[%clk 0:02:31]}  Qh5 {[%clk 0:02:25]} 12. Nf3 {[%clk 0:02:26]}  Bf5 {[%clk 0:02:12]} 13. Bxf5 {[%clk 0:02:19]}  Qxf5 {[%clk 0:02:11]} 14. Nxd4 {[%clk 0:02:17]}  cxd4 {[%clk 0:02:12]} 15. Na4 {[%clk 0:02:16]}  Rc8 {[%clk 0:02:08]} 16. d3 {[%clk 0:02:10]}  e5 {[%clk 0:02:02]} 17. Rhe1 {[%clk 0:02:08]}  Bd6 {[%clk 0:01:52]} 18. Nb6 {[%clk 0:02:07]}  Rc6 {[%clk 0:01:49]} 19. Nc4 {[%clk 0:02:07]}  O-O {[%clk 0:01:42]} 20. Nxd6 {[%clk 0:02:05]}  Rxd6 {[%clk 0:01:42]} 21. Qxe5 {[%clk 0:02:01]}  Qd7 {[%clk 0:01:42]} 22. g4 {[%clk 0:01:53]}  Rc8 {[%clk 0:01:36]} 23. Kb1 {[%clk 0:01:50]}  h6 {[%clk 0:01:30]} 24. f3 {[%clk 0:01:46]}  Qc6 {[%clk 0:01:20]} 25. Rc1 {[%clk 0:01:43]}  Re6 {[%clk 0:01:15]} 26. Qg3 {[%clk 0:01:34]}  Rxe1 {[%clk 0:01:04]} 27. Qxe1 {[%clk 0:01:33]}  Qxf3 {[%clk 0:01:02]} 28. Bxd4 {[%clk 0:01:32]}  Nd5 {[%clk 0:01:02]} 29. Qe4 {[%clk 0:01:25]}  Qxe4 {[%clk 0:00:54]} 30. dxe4 {[%clk 0:01:24]}  Nf4 {[%clk 0:00:55]} 31. Rh1 {[%clk 0:01:05]}  Rd8 {[%clk 0:00:50]} 32. Be3 {[%clk 0:01:03]}  Ng2 {[%clk 0:00:46]} 33. Bc1 {[%clk 0:00:59]}  Re8 {[%clk 0:00:44]} 34. Rg1 {[%clk 0:00:55]}  Nh4 {[%clk 0:00:44]} 35. Re1 {[%clk 0:00:52]}  f6 {[%clk 0:00:32]} 36. a4 {[%clk 0:00:46]}  Kf7 {[%clk 0:00:28]} 37. Kb2 {[%clk 0:00:42]}  Nf3 {[%clk 0:00:26]} 38. Re3 {[%clk 0:00:39]}  Ng5 {[%clk 0:00:26]} 39. h4 {[%clk 0:00:31]}  Nxe4 {[%clk 0:00:23]} 40. c4 {[%clk 0:00:30]}  g6 {[%clk 0:00:20]} 41. b4 {[%clk 0:00:29]}  f5 {[%clk 0:00:20]} 42. gxf5 {[%clk 0:00:29]}  gxf5 {[%clk 0:00:21]} 43. Rd3 {[%clk 0:00:28]}  Re7 {[%clk 0:00:21]} 44. Bxh6 {[%clk 0:00:27]}  Nf2 {[%clk 0:00:19]} 45. Rf3 {[%clk 0:00:25]}  Re2+ {[%clk 0:00:20]} 46. Kb3 {[%clk 0:00:24]}  Kg6 {[%clk 0:00:20]} 47. Bg5 {[%clk 0:00:22]}  Ne4 {[%clk 0:00:20]} 48. Bd8 {[%clk 0:00:20]}  Nd2+ {[%clk 0:00:20]} 49. Kc3 {[%clk 0:00:19]}  Nxf3 {[%clk 0:00:21]} 50. c5 {[%clk 0:00:17]}  Re8 {[%clk 0:00:21]} 51. Bc7 {[%clk 0:00:15]}  Nxh4 {[%clk 0:00:21]} 52. b5 {[%clk 0:00:16]}  axb5 {[%clk 0:00:21]} 53. axb5 {[%clk 0:00:17]}  Rc8 {[%clk 0:00:21]} 54. Bd6 {[%clk 0:00:16]}  Nf3 {[%clk 0:00:21]} 55. Kc4 {[%clk 0:00:15]}  Ng5 {[%clk 0:00:20]} 56. Kd5 {[%clk 0:00:15]}  Nf7 {[%clk 0:00:20]} 57. Be7 {[%clk 0:00:13]}  Rc7 {[%clk 0:00:20]} 58. Bh4 {[%clk 0:00:13]}  Rd7+ {[%clk 0:00:19]} 59. Ke6 {[%clk 0:00:11]}  Rd4 {[%clk 0:00:20]} 60. Be7 {[%clk 0:00:10]}  Re4+ {[%clk 0:00:19]} 61. Kd7 {[%clk 0:00:10]}  Rd4+ {[%clk 0:00:19]} 62. Kc7 {[%clk 0:00:09]}  Re4 {[%clk 0:00:18]} 63. Bh4 {[%clk 0:00:09]}  Re5 {[%clk 0:00:19]} 64. Bf2 {[%clk 0:00:08]}  Re2 {[%clk 0:00:18]} 65. Bg1 {[%clk 0:00:08]}  Rg2 {[%clk 0:00:17]} 66. Be3 {[%clk 0:00:07]}  Re2 {[%clk 0:00:16]} 67. Bg1 {[%clk 0:00:07]}  Re7+ {[%clk 0:00:16]} 68. Kb8 {[%clk 0:00:07]}  f4 {[%clk 0:00:17]} 69. c6 {[%clk 0:00:07]}  bxc6 {[%clk 0:00:17]} 70. bxc6 {[%clk 0:00:07]}  f3 {[%clk 0:00:17]} 71. c7 {[%clk 0:00:06]}  Nd6 {[%clk 0:00:16]} 72. Bc5 {[%clk 0:00:06]}  Rxc7 {[%clk 0:00:15]} 73. Kxc7 {[%clk 0:00:06]}  Ne4 {[%clk 0:00:15]} 74. Be3 {[%clk 0:00:06]}  Kf5 {[%clk 0:00:16]} 75. Kc6 {[%clk 0:00:06]}  Ke5 {[%clk 0:00:15]} 76. Kb5 {[%clk 0:00:06]}  Ng3 {[%clk 0:00:14]} 77. Kc4 {[%clk 0:00:05]}  Ke4 {[%clk 0:00:14]} 78. Bf2 {[%clk 0:00:05]}  Nh1 {[%clk 0:00:15]} 79. Bh4 {[%clk 0:00:05]}  Ke3 {[%clk 0:00:15]} 80. Kc3 {[%clk 0:00:05]}  Ke2 {[%clk 0:00:15]} 81. Kd4 {[%clk 0:00:05]}  Nf2 {[%clk 0:00:15]} 82. Bg3 {[%clk 0:00:04]}  Nd3 {[%clk 0:00:14]} 83. Bh4 {[%clk 0:00:04]}  Nf2 {[%clk 0:00:13]} 84. Bg3 {[%clk 0:00:04]}  Ng4 {[%clk 0:00:14]} 85. Bh4 {[%clk 0:00:03]}  Ne3 {[%clk 0:00:14]} 86. Bg3 {[%clk 0:00:00]}  Nf5+ {[%clk 0:00:14]} 0-1

[Event "January 2 Late 2024"]
[Site "https://www.chess.com"]
[Date "2024.01.02"]
[Round "11"]
[White "Gabdushev, Ruslan"]
[Black "Vlassov, Nikolai"]
[Result "0-1"]
[Board "89"]
[TimeControl "180+1"]
[WhiteFideId "4137833"]
[BlackFideId "4103360"]
[WhiteElo "2430"]
[BlackElo "2611"]
[WhiteTeam "RUS"]
[BlackTeam "FID"]
[WhiteClock "0:00:58"]
[BlackClock "0:00:54"]

1. c4 {[%clk 0:02:59]}  e5 {[%clk 0:02:59]} 2. b3 {[%clk 0:02:58]}  Nf6 {[%clk 0:02:57]} 3. Bb2 {[%clk 0:02:57]}  Nc6 {[%clk 0:02:56]} 4. e3 {[%clk 0:02:57]}  d5 {[%clk 0:02:54]} 5. cxd5 {[%clk 0:02:57]}  Nxd5 {[%clk 0:02:55]} 6. a3 {[%clk 0:02:57]}  Be7 {[%clk 0:02:54]} 7. Qc2 {[%clk 0:02:57]}  O-O {[%clk 0:02:54]} 8. Nf3 {[%clk 0:02:54]}  f6 {[%clk 0:02:44]} 9. d3 {[%clk 0:02:53]}  Be6 {[%clk 0:02:44]} 10. Be2 {[%clk 0:02:53]}  Qd7 {[%clk 0:02:33]} 11. Nbd2 {[%clk 0:02:52]}  Rfd8 {[%clk 0:02:32]} 12. O-O {[%clk 0:02:50]}  Bf8 {[%clk 0:02:32]} 13. Kh1 {[%clk 0:02:47]}  Qf7 {[%clk 0:02:31]} 14. Rg1 {[%clk 0:02:46]}  a5 {[%clk 0:02:29]} 15. g4 {[%clk 0:02:43]}  h6 {[%clk 0:02:28]} 16. Nh4 {[%clk 0:02:35]}  Nce7 {[%clk 0:02:21]} 17. Rg3 {[%clk 0:02:28]}  Rac8 {[%clk 0:02:20]} 18. Rag1 {[%clk 0:02:24]}  c5 {[%clk 0:02:19]} 19. Bf3 {[%clk 0:02:11]}  Rd7 {[%clk 0:02:13]} 20. Be4 {[%clk 0:02:09]}  b5 {[%clk 0:02:09]} 21. Nf5 {[%clk 0:02:08]}  Nb6 {[%clk 0:01:50]} 22. a4 {[%clk 0:01:55]}  c4 {[%clk 0:01:43]} 23. axb5 {[%clk 0:01:42]}  cxd3 {[%clk 0:01:39]} 24. Qb1 {[%clk 0:01:37]}  Rc2 {[%clk 0:01:37]} 25. Rd1 {[%clk 0:01:30]}  Bxb3 {[%clk 0:01:27]} 26. Bxe5 {[%clk 0:01:23]}  Ba2 {[%clk 0:01:24]} 27. Qa1 {[%clk 0:01:20]}  fxe5 {[%clk 0:01:24]} 28. Qxe5 {[%clk 0:01:16]}  Rxd2 {[%clk 0:01:01]} 29. Rxd2 {[%clk 0:01:12]}  Nc4 {[%clk 0:01:02]} 30. Qc3 {[%clk 0:01:10]}  Nxd2 {[%clk 0:01:02]} 31. Qxd2 {[%clk 0:01:11]}  Nxf5 {[%clk 0:00:58]} 32. gxf5 {[%clk 0:01:10]}  Bb4 {[%clk 0:00:57]} 33. Qb2 {[%clk 0:00:58]}  d2 {[%clk 0:00:54]} 0-1

[Event "January 2 Late 2024"]
[Site "https://www.chess.com"]
[Date "2024.01.02"]
[Round "11"]
[White "AmanteDeMoi"]
[Black "Karpov, Vadim"]
[Result "1-0"]
[Board "92"]
[TimeControl "180+1"]
[BlackFideId "4155025"]
[WhiteElo "2547"]
[BlackElo "2416"]
[BlackTeam "RUS"]
[WhiteClock "0:02:23"]
[BlackClock "0:01:12"]

1. Nf3 {[%clk 0:03:00]}  e6 {[%clk 0:03:00]} 2. e3 {[%clk 0:03:01]}  d5 {[%clk 0:03:01]} 3. c4 {[%clk 0:03:01]}  Nf6 {[%clk 0:03:00]} 4. b3 {[%clk 0:03:02]}  Be7 {[%clk 0:03:00]} 5. Bb2 {[%clk 0:03:02]}  O-O {[%clk 0:03:01]} 6. Be2 {[%clk 0:03:03]}  c5 {[%clk 0:03:00]} 7. O-O {[%clk 0:03:03]}  Nc6 {[%clk 0:03:00]} 8. cxd5 {[%clk 0:03:03]}  Nxd5 {[%clk 0:02:59]} 9. Qc1 {[%clk 0:03:03]}  b6 {[%clk 0:02:54]} 10. d4 {[%clk 0:03:02]}  Bb7 {[%clk 0:02:54]} 11. dxc5 {[%clk 0:03:02]}  Bxc5 {[%clk 0:02:54]} 12. Rd1 {[%clk 0:03:02]}  Qe7 {[%clk 0:02:45]} 13. e4 {[%clk 0:03:01]}  Nf6 {[%clk 0:02:40]} 14. Qg5 {[%clk 0:03:00]}  Bxf2+ {[%clk 0:02:33]} 15. Kf1 {[%clk 0:03:01]}  Bc5 {[%clk 0:02:28]} 16. Rd7 {[%clk 0:03:00]}  h6 {[%clk 0:02:07]} 17. Rxe7 {[%clk 0:02:59]}  hxg5 {[%clk 0:02:05]} 18. Rxb7 {[%clk 0:03:00]}  Nxe4 {[%clk 0:02:04]} 19. Nc3 {[%clk 0:02:50]}  Nd6 {[%clk 0:02:01]} 20. Rc7 {[%clk 0:02:46]}  Nb4 {[%clk 0:01:56]} 21. Nxg5 {[%clk 0:02:43]}  Nf5 {[%clk 0:01:50]} 22. Nce4 {[%clk 0:02:40]}  Ne3+ {[%clk 0:01:49]} 23. Kg1 {[%clk 0:02:36]}  Ned5+ {[%clk 0:01:42]} 24. Rxc5 {[%clk 0:02:26]}  bxc5 {[%clk 0:01:41]} 25. a3 {[%clk 0:02:24]}  Nc2 {[%clk 0:01:33]} 26. Rc1 {[%clk 0:02:23]}  Nd4 {[%clk 0:01:34]} 27. Bd1 {[%clk 0:02:24]}  Rab8 {[%clk 0:01:28]} 28. Nxc5 {[%clk 0:02:23]}  Ne3 {[%clk 0:01:12]} 29. Bxd4 {[%clk 0:02:23]} 1-0

[Event "January 2 Late 2024"]
[Site "https://www.chess.com"]
[Date "2024.01.02"]
[Round "11"]
[White "Stojanovski, Sandi"]
[Black "Ambrogi, Agustin"]
[Result "0-1"]
[Board "95"]
[TimeControl "180+1"]
[WhiteFideId "1403249"]
[BlackFideId "170933"]
[WhiteElo "2482"]
[BlackElo "2392"]
[WhiteTeam "DEN"]
[BlackTeam "ARG"]
[WhiteClock "0:00:07"]
[BlackClock "0:01:49"]

1. c4 {[%clk 0:03:00]}  Nf6 {[%clk 0:02:56]} 2. Nc3 {[%clk 0:03:00]}  g6 {[%clk 0:02:57]} 3. e4 {[%clk 0:02:59]}  d6 {[%clk 0:02:57]} 4. d4 {[%clk 0:02:59]}  Bg7 {[%clk 0:02:58]} 5. Nf3 {[%clk 0:03:00]}  O-O {[%clk 0:02:58]} 6. Be2 {[%clk 0:03:00]}  e5 {[%clk 0:02:58]} 7. O-O {[%clk 0:03:00]}  Nc6 {[%clk 0:02:59]} 8. Be3 {[%clk 0:03:01]}  Ng4 {[%clk 0:02:55]} 9. Bg5 {[%clk 0:03:00]}  f6 {[%clk 0:02:55]} 10. Bc1 {[%clk 0:03:00]}  f5 {[%clk 0:02:53]} 11. d5 {[%clk 0:02:55]}  Nd4 {[%clk 0:02:52]} 12. Nxd4 {[%clk 0:02:51]}  exd4 {[%clk 0:02:52]} 13. Nb5 {[%clk 0:02:50]}  Ne5 {[%clk 0:02:38]} 14. exf5 {[%clk 0:02:46]}  Bxf5 {[%clk 0:02:38]} 15. Nxd4 {[%clk 0:02:45]}  Qh4 {[%clk 0:02:36]} 16. Nxf5 {[%clk 0:02:37]}  Rxf5 {[%clk 0:02:36]} 17. Be3 {[%clk 0:02:36]}  Nxc4 {[%clk 0:02:30]} 18. Bxc4 {[%clk 0:02:33]}  Qxc4 {[%clk 0:02:29]} 19. Rc1 {[%clk 0:02:33]}  Qxd5 {[%clk 0:02:24]} 20. Rxc7 {[%clk 0:02:22]}  Qxd1 {[%clk 0:02:19]} 21. Rxd1 {[%clk 0:02:21]}  Rf7 {[%clk 0:02:20]} 22. Rxf7 {[%clk 0:02:14]}  Kxf7 {[%clk 0:02:21]} 23. b3 {[%clk 0:02:13]}  Ke6 {[%clk 0:02:19]} 24. Rc1 {[%clk 0:01:43]}  a5 {[%clk 0:02:18]} 25. Rc7 {[%clk 0:01:40]}  a4 {[%clk 0:02:13]} 26. g4 {[%clk 0:01:23]}  Be5 {[%clk 0:02:04]} 27. Rxb7 {[%clk 0:01:17]}  a3 {[%clk 0:02:04]} 28. Rxh7 {[%clk 0:01:16]}  Rc8 {[%clk 0:02:04]} 29. Ra7 {[%clk 0:01:12]}  Bb2 {[%clk 0:02:04]} 30. Kg2 {[%clk 0:00:55]}  Ke5 {[%clk 0:02:04]} 31. h4 {[%clk 0:00:54]}  Ke4 {[%clk 0:02:05]} 32. h5 {[%clk 0:00:54]}  gxh5 {[%clk 0:02:05]} 33. gxh5 {[%clk 0:00:54]}  Kd3 {[%clk 0:02:06]} 34. h6 {[%clk 0:00:32]}  Kc2 {[%clk 0:02:06]} 35. h7 {[%clk 0:00:24]}  Kb1 {[%clk 0:02:06]} 36. Rxa3 {[%clk 0:00:10]}  Bxa3 {[%clk 0:01:59]} 37. Bd4 {[%clk 0:00:10]}  Bb2 {[%clk 0:01:57]} 38. h8=Q {[%clk 0:00:10]}  Rxh8 {[%clk 0:01:56]} 39. Bxh8 {[%clk 0:00:11]}  Bxh8 {[%clk 0:01:56]} 40. Kf3 {[%clk 0:00:11]}  Kxa2 {[%clk 0:01:56]} 41. Ke4 {[%clk 0:00:09]}  Kxb3 {[%clk 0:01:54]} 42. Kd5 {[%clk 0:00:06]}  Be5 {[%clk 0:01:54]} 43. Ke4 {[%clk 0:00:06]}  Kc4 {[%clk 0:01:53]} 44. f4 {[%clk 0:00:07]}  Bxf4 {[%clk 0:01:49]} 45. Kxf4 {[%clk 0:00:07]} 0-1

[Event "January 2 Late 2024"]
[Site "https://www.chess.com"]
[Date "2024.01.02"]
[Round "11"]
[White "Tikhonov, Viacheslav"]
[Black "Khodabandeh, Milad"]
[Result "1-0"]
[Board "96"]
[TimeControl "180+1"]
[WhiteFideId "44196407"]
[BlackFideId "12538620"]
[WhiteElo "2475"]
[BlackElo "2387"]
[WhiteTeam "RUS"]
[BlackTeam "IRI"]
[WhiteClock "0:02:01"]
[BlackClock "0:00:50"]

1. d4 {[%clk 0:03:00]}  d5 {[%clk 0:02:59]} 2. c4 {[%clk 0:02:59]}  c6 {[%clk 0:03:00]} 3. Nf3 {[%clk 0:03:00]}  Nf6 {[%clk 0:03:00]} 4. e3 {[%clk 0:03:00]}  e6 {[%clk 0:03:00]} 5. Nbd2 {[%clk 0:03:00]}  Bd6 {[%clk 0:02:58]} 6. Bd3 {[%clk 0:03:01]}  O-O {[%clk 0:02:58]} 7. O-O {[%clk 0:03:01]}  Nbd7 {[%clk 0:02:59]} 8. e4 {[%clk 0:03:01]}  dxe4 {[%clk 0:02:59]} 9. Nxe4 {[%clk 0:03:02]}  Nxe4 {[%clk 0:02:59]} 10. Bxe4 {[%clk 0:03:02]}  f5 {[%clk 0:02:57]} 11. Bc2 {[%clk 0:03:01]}  e5 {[%clk 0:02:44]} 12. c5 {[%clk 0:02:39]}  Bb8 {[%clk 0:02:37]} 13. Bb3+ {[%clk 0:02:37]}  Kh8 {[%clk 0:02:36]} 14. Ng5 {[%clk 0:02:35]}  Qf6 {[%clk 0:02:26]} 15. Nxh7 {[%clk 0:02:32]}  Qg6 {[%clk 0:02:03]} 16. Nxf8 {[%clk 0:02:28]}  Nxf8 {[%clk 0:02:03]} 17. dxe5 {[%clk 0:02:20]}  Bxe5 {[%clk 0:02:03]} 18. Qd8 {[%clk 0:02:20]}  Qf6 {[%clk 0:01:38]} 19. Rd1 {[%clk 0:02:17]}  g6 {[%clk 0:01:21]} 20. Bh6 {[%clk 0:02:10]}  Qxd8 {[%clk 0:00:56]} 21. Rxd8 {[%clk 0:02:11]}  Bg7 {[%clk 0:00:56]} 22. Rxf8+ {[%clk 0:02:02]}  Bxf8 {[%clk 0:00:54]} 23. Bxf8 {[%clk 0:02:02]}  Bd7 {[%clk 0:00:50]} 24. Rd1 {[%clk 0:02:01]} 1-0